Cogmind - Beta 11 @@@ ROGUE MODE // 2022.03.26 @ 22:36:05 Player: nuzcraft Result: Destroyed by H-81 Overseer with Heavy Linear Accelerator Performance ------------- Evolutions (8) 4000 Regions Visited (14) 2800 Robots Destroyed (188) 940 Value Destroyed (6484) 6484 Prototype IDs (13) 260 Alien Tech Used (0) 0 Bonus (3124) 3124 TOTAL SCORE: 17608 Bonus ------- High Alert Combat Kills 925 Follower Combat Kills 1960 Network Hubs Disabled 400 Met Zhirov 300 Friendly Fire -461 Cogmind --------- Core Integrity 0/1450 Matter 15/300 Energy 90/100 System Corruption 13% Temperature Cool (0) Movement Core (50) Location -2/Research Parts ------- > --- POWER (2) -------- (None) > --- PROPULSION (6) --- (None) > --- UTILITY (11) ----- Enhanced Optical Array Advanced Targeting Computer Advanced Target Analyzer > --- WEAPON (4) ------- (None) > --- INVENTORY (5) ---- Huge Storage Unit Coil Gun Railgun Magnetic Acceleration Cannon Lance Peak State ------------ > --- POWER ------------ Quantum Reactor Quantum Reactor > --- PROPULSION ------- Armored Heavy Treads Armored Heavy Treads Armored Heavy Treads > --- UTILITY ---------- Advanced Heat Sink Advanced Coolant Injector Huge Storage Unit Enhanced Optical Array Advanced Sensor Array Advanced Targeting Computer Advanced Target Analyzer Advanced Target Analyzer Improved Weapon Cycler Improved Force Booster Advanced Phase Shifter > --- WEAPON ----------- Enhanced Quantum Rifle Railgun Gauss Cannon Heavy Gauss Cannon > --- INVENTORY -------- Micro Antimatter Reactor Micro Antimatter Reactor Centrium Leg Antigrav System Improved Antigrav System Improved Antigrav System Improved Antigrav System Improved Antigrav System Combat Linear Gravjet Advanced Heat Sink Huge Storage Unit Gamma Rifle HERF Cannon Coil Gun Coil Gun Coil Gun KE Penetrator Railgun Magnetic Acceleration Cannon Enhanced Gauss Cannon Tesla Bomb Launcher Long-range Missile Launcher Shock Maul Lance [Rating: 170] Favorites ----------- Power Reinforced Deuterium Engine Engine Reinforced Deuterium Engine Power Core Nuclear Core Reactor Heavy Antimatter Reactor Propulsion Light Treads Treads Light Treads Leg Titanium Leg Wheel Armored Huge Wheel Hover Unit Improved Antigrav System Flight Unit Electron Diverter Utility Huge Storage Unit Device Improved Cooling System Storage Huge Storage Unit Processor Enhanced Optical Array Hackware Improved Hacking Suite Protection Centrium Medium Armor Plating Weapon Improved Light Cannon Energy Gun Medium Laser Energy Cannon Heavy Ion Cannon Ballistic Gun High-powered Shotgun Ballistic Cannon Improved Light Cannon Launcher Advanced EMP Blaster Impact Weapon Power Maul Piercing Weapon Lance Build | -11 -10 -9 -8 -8 -7 -6 -6 -6 -6 -6 -5 -4 -3 -2 ------- Run | Scr Mat Mat Mat Sto Fac Fac Ext Cet Arc Hub Fac Fac Res Res Slots Evolved 16 | . . 2 2 . 2 2 . . . . 2 2 2 2 Power 1 | . . . . . 1 . . . . . . . . . Propulsion 4 | . . 1 1 . . . . . . . 2 . . . Utility 9 | . . . 1 . 1 2 . . . . . 2 2 1 Weapon 2 | . . 1 . . . . . . . . . . . 1 Parts Attached 244 | 7 13 19 17 33 21 5 14 7 1 12 27 3 30 35 Power 22 | 1 1 . 1 3 2 2 . . . 2 4 . 2 4 Engine 9 | 1 1 . 1 1 1 1 . . . 1 2 . . . Core 6 | . . . . 2 1 . . . . 1 2 . . . Reactor 7 | . . . . . . 1 . . . . . . 2 4 Propulsion 42 | 2 2 1 3 5 6 . . . . 1 3 . 11 8 Treads 16 | . 2 1 3 5 . . . . . . . . 2 3 Leg 8 | 2 . . . . 4 . . . . . . . 2 . Wheel 7 | . . . . . 2 . . . . 1 3 . 1 . Hover 10 | . . . . . . . . . . . . . 5 5 Flight 1 | . . . . . . . . . . . . . 1 . Utility 76 | 2 6 7 8 7 6 2 3 4 . 6 7 2 8 8 Device 44 | 1 5 6 7 4 4 . 3 . . 4 1 1 2 6 Storage 3 | 1 1 1 . . . . . . . . . . . . Processor 5 | . . . . . . 1 . . . . . . 2 2 Hackware 1 | . . . . . . . . . . . . . 1 . Protection 23 | . . . 1 3 2 1 . 4 . 2 6 1 3 . Artifact . | . . . . . . . . . . . . . . . Weapon 104 | 2 4 11 5 18 7 1 11 3 1 3 13 1 9 15 Energy Gun 8 | 2 . 2 . . . . . . . . . . 2 2 Energy Cannon 14 | . . 1 . 2 2 . 4 . . 1 1 . . 3 Ballistic Gun 18 | . 2 3 4 4 1 . . . . 1 . . 1 2 Ballistic Cannon 23 | . 2 5 1 6 2 . . . . 1 2 . 1 3 Launcher 17 | . . . . 4 1 . 3 2 . . 5 1 . 1 Special Weapon . | . . . . . . . . . . . . . . . Impact Weapon 14 | . . . . 2 1 1 4 1 1 . . . 3 1 Slashing Weapon . | . . . . . . . . . . . . . . . Piercing Weapon 10 | . . . . . . . . . . . 5 . 2 3 Special Melee Weapon . | . . . . . . . . . . . . . . . Unidentified Prototypes 10 | . . 1 1 3 . . . 1 . . . 1 3 . Corrupted Parts 1 | . . . . . . . . . . . . . 1 . System Corruption 3 | . . . . . . . . . . . . . 3 . Parts Lost 59 | . . . 1 9 . . . 3 . 4 3 1 10 28 Power 8 | . . . . 1 . . . . . 1 2 . 2 2 Propulsion 18 | . . . . 4 . . . . . 1 1 . 3 9 Utility 22 | . . . 1 3 . . . 2 . 1 . . 4 11 Weapon 11 | . . . . 1 . . . 1 . 1 . 1 1 6 Highest Loss Streak 19 | . . . 1 9 . . . 2 . 1 2 1 9 19 To Critical Strikes . | . . . . . . . . . . . . . . . Average Slot Usage (%) 90 | . 100 100 99 99 98 80 80 78 86 85 77 84 80 71 Engine 6 | . 14 11 9 5 . 7 6 6 6 6 5 5 2 . Core 2 | . . . . 3 14 . . . . 1 4 5 2 . Reactor 2 | . . . . . . 4 6 6 6 4 . . 3 6 Treads 14 | . 17 33 36 36 . . . . . . . . 1 10 Leg 3 | . 10 . . . 27 . . . . . . . 2 2 Wheel 5 | . . . . . 1 13 13 13 13 12 17 21 9 . Device 11 | . 14 11 9 9 8 17 13 6 6 13 9 10 13 16 Storage 7 | . 14 11 9 9 7 6 6 6 6 6 5 5 4 3 Processor 3 | . . . . . . 2 6 6 6 6 5 5 5 13 Protection 7 | . . . 8 8 13 6 6 14 20 12 8 15 12 1 Energy Gun 1 | . 7 1 . . . . . . . . . . 1 4 Energy Cannon 4 | . . . . . 2 13 13 13 13 12 6 5 2 . Ballistic Gun 2 | . 3 2 7 3 1 5 . . . . . . 1 2 Ballistic Cannon 10 | . 17 29 19 16 12 . . . . 1 5 5 3 2 Launcher 1 | . . . . 4 2 . . 2 . . . 5 . . Impact Weapon 1 | . . . . 2 2 . 4 1 6 3 . . 2 . Naked Turns . | . . . . . . . . . . . . . . . Heaviest Build 169 | 13 41 105 108 106 123 149 155 160 155 152 149 154 169 168 Greatest Support 180 | 20 40 60 80 80 68 56 56 56 56 56 84 76 76 180 Greatest Overweight (x) 5 | . 1 1 1 1 4 2 2 2 2 5 2 2 5 2 Average Overweight (x) 1 | . . . 1 1 1 2 2 2 2 2 1 1 2 . Largest Inventory Capacity 25 | 8 15 25 25 25 25 25 25 25 25 25 25 25 25 25 Average Capacity 23 | 6 14 24 25 25 25 25 25 25 25 25 25 25 25 21 Most Carried 25 | 8 15 25 25 25 25 25 25 25 24 25 25 23 25 25 Average Carried 22 | 4 14 22 24 23 24 24 24 24 24 24 24 20 23 20 Final Capacity 25 | 8 15 25 25 25 25 25 25 25 25 25 25 25 25 5 Final Carried 25 | 8 15 25 25 25 25 25 25 24 24 25 21 23 25 5 Class Distribution -------------------- 42% | Mutant 16% | Gunner 15% | Scavenger-Mutant 10% | Scavenger-Tank 9% | Commander-Mutant 4% | Tank Dominant Class ---------------- Mutant | -10/Materials Gunner | -9/Materials Scavenger-Tank | -8/Materials Scavenger-Mutant | -8/Storage Mutant | -7/Factory Mutant | -6/Factory Mutant | -6/Extension Commander-Mutant | -6/Cetus Mutant | -6/Archives Mutant | -6/Hub_04(d) Mutant | -5/Factory Scavenger-Mutant | -4/Factory Scavenger-Mutant | -3/Research Scavenger-Mutant | -2/Research Resources | -11 -10 -9 -8 -8 -7 -6 -6 -6 -6 -6 -5 -4 -3 -2 ----------- Run | Scr Mat Mat Mat Sto Fac Fac Ext Cet Arc Hub Fac Fac Res Res Matter Collected 4515 | 270 175 320 555 868 341 . 322 105 . 233 286 . 479 561 Remotely 1220 | 151 167 113 322 467 . . . . . . . . . . Salvage Created 7537 | 96 350 413 566 1016 398 74 696 267 34 1818 620 . 574 615 Parts 356 | 3 15 24 37 54 27 3 23 15 . 65 35 . 29 26 Haulers Intercepted 13 | . 2 2 3 4 . . . . . 1 . . 1 . Recyclers Shooed 8 | . . 1 1 2 3 . 1 . . . . . . . Parts Field Recycled 70 | . 25 25 20 . . . . . . . . . . . Retrieved Matter 421 | . 111 219 91 . . . . . . . . . . . Parts Self-Destructed . | . . . . . . . . . . . . . . . Prevented . | . . . . . . . . . . . . . . . Kills | -11 -10 -9 -8 -8 -7 -6 -6 -6 -6 -6 -5 -4 -3 -2 ------- Run | Scr Mat Mat Mat Sto Fac Fac Ext Cet Arc Hub Fac Fac Res Res Combat Hostiles Destroyed 116 | . 6 12 12 21 1 1 11 4 . 16 15 . 8 9 Melee 11 | . . . . . . . 5 . . 1 1 . 2 2 Guns 24 | . 3 4 3 3 . . . . . 3 . . 4 4 Cannons 53 | . 3 8 9 12 1 1 2 1 . 8 5 . 2 1 AOE 21 | . . . . 6 . . 1 3 . 4 7 . . . Classes Destroyed 17 | 1 3 2 2 5 . . 2 . . 1 . . . 1 Worker 11 | . . . . 4 . . . . . 5 1 . . 1 Builder 11 | . . . 1 1 3 . . . . 3 1 . . 2 Tunneler 5 | . . . . . . . . . . 5 . . . . Hauler 13 | . 2 2 3 4 . . . . . 1 . . 1 . Recycler 15 | 1 1 1 2 1 4 . 1 . . 4 . . . . Operator 3 | . . . . 1 . . . . . 2 . . . . Watcher 12 | . 1 2 . . 2 . 1 1 . 4 . . . 1 Swarmer 29 | . . 6 4 3 . . 2 3 . 3 8 . . . Grunt 37 | . 6 4 5 10 . . 3 . . 7 2 . . . Brawler 1 | . . . . 1 . . . . . . . . . . Duelist 3 | . . . . . . . 1 1 . 1 . . . . Protector 2 | . . . . 2 . . . . . . . . . . Sentry 14 | . . 2 1 3 . 1 2 . . 3 1 . 1 . Demolisher 2 | . . . . 2 . . . . . . . . . . Hunter 12 | . . . 2 . 1 . 1 . . . . . 2 6 Programmer 14 | . . . . . . . 1 . . 2 4 . 5 2 Heavy 1 | . . . . . . . . . . . . . . 1 Thug 1 | . . . . . . . . 1 . . . . . . Guerrilla 2 | . . . . . . . 1 1 . . . . . . Best Kill Streak 22 | 1 4 4 5 11 4 1 2 4 . 22 7 . 5 3 Combat Bots Only 9 | . 3 3 4 9 1 1 2 4 . 4 7 . 5 2 Max Kills in Single Turn 22 | 1 1 1 2 5 3 1 1 2 . 22 3 . 1 2 Gunslinging . | . . . . . . . . . . . . . . . Exploded 4 | . . . . 3 . . 1 1 . 4 3 . . . Melee 1 | . . . . . . . 1 . . 1 1 . 1 1 Uniques/NPCs Destroyed . | . . . . . . . . . . . . . . . Combat | -11 -10 -9 -8 -8 -7 -6 -6 -6 -6 -6 -5 -4 -3 -2 -------- Run | Scr Mat Mat Mat Sto Fac Fac Ext Cet Arc Hub Fac Fac Res Res Damage Taken 16300 | . 224 239 475 1206 267 . 722 391 . 1915 1352 . 2398 7111 Core 2235 | . 52 19 85 134 10 . 91 . . 106 148 . 58 1532 Absorbed by Shields 54 | . . . . . . . 54 . . . . . . . Regen/Repaired (Parts) 157 | . 93 . . . 22 . . . . 42 . . . . Core Remaining (%) 87 | 100 79 95 . 60 98 . . . . 76 85 100 95 . Volleys Fired 344 | 3 30 30 36 54 28 19 21 10 . 30 25 . 19 39 Largest 4 | 2 2 3 3 3 2 3 3 2 . 3 3 . 3 4 Hottest 262 | 100 100 118 117 127 96 158 223 150 . 203 191 . 185 262 Shots Fired 799 | 6 60 86 107 108 50 35 43 12 . 86 43 . 41 122 Gun 178 | 6 28 14 12 26 3 1 . . . 13 . . 22 53 Cannon 579 | . 32 72 95 66 45 34 40 4 . 73 31 . 19 68 Launcher 42 | . . . . 16 2 . 3 8 . . 12 . . 1 Special . | . . . . . . . . . . . . . . . Kinetic 505 | . 36 83 107 92 48 1 . . . 23 19 . 34 62 Thermal 223 | 6 24 . . . . 34 40 4 . 63 12 . 3 37 Explosive . | . . . . . . . . . . . . . . . Electromagnetic 71 | . . 3 . 16 2 . 3 8 . . 12 . 4 23 Robot Hit Streak 31 | 3 14 9 7 14 5 3 7 4 . 11 11 . 7 31 Robot Miss Streak 5 | 1 2 5 4 4 2 1 3 1 . 3 3 . 4 4 Penetration Max . | . . . . . . . . . . . . . . . Secondary Targets . | . . . . . . . . . . . . . . . Shots Hit Robots 499 | 4 38 50 52 70 24 2 37 3 1 66 22 . 36 94 Core Hits 294 | 2 14 18 26 58 13 1 13 18 . 66 20 . 17 28 Critical Kills 4 | . . . . . . . 2 . . . 1 . . 1 Critical Parts Destroyed 5 | . . . . . . . 1 . . 1 . . 3 . Critical Strikes 33 | . 4 . 5 2 . . 3 . . 1 2 . 4 12 Burn 2 | . 2 . . . . . . . . . . . . . Meltdown 2 | . . . . . . . 1 . . . 1 . . . Destroy 1 | . . . . . . . . . . . . . . 1 Blast 17 | . 2 . 5 2 . . . . . . . . 1 7 Corrupt 2 | . . . . . . . . . . . . . . 2 Smash 6 | . . . . . . . 2 . . 1 . . 3 . Impale 3 | . . . . . . . . . . . 1 . . 2 Melee Attacks 108 | . . . . 10 3 3 29 . 2 19 18 . 14 10 Impact 75 | . . . . 10 3 3 29 . 2 19 . . 8 1 Slashing . | . . . . . . . . . . . . . . . Piercing 33 | . . . . . . . . . . . 18 . 6 9 Sneak Attacks 9 | . . . . 3 . . 2 . . 3 . . 1 . Combat Hostiles . | . . . . . . . . . . . . . . . Follow-up Attacks . | . . . . . . . . . . . . . . . Damage Inflicted 19119 | 49 682 965 1080 2395 862 24 1432 560 118 5089 1483 . 1390 2990 Guns 2796 | 49 211 173 124 424 . . . . . 211 . . 433 1171 Cannons 8513 | . 471 792 956 1002 602 24 717 59 . 1378 646 . 438 1428 Explosions 5271 | . . . . 709 260 . 47 501 . 2849 751 . . 154 Melee 2509 | . . . . 256 . . 647 . 118 651 86 . 519 232 Ramming 30 | . . . . 4 . . 21 . . . . . . 5 Kinetic 7336 | . 508 953 1080 1426 602 . . . . 330 312 . 784 1341 Thermal 3920 | 49 174 . . 188 . 24 717 251 . 1259 366 . 41 851 Explosive 585 | . . . . . 223 . . . . . 362 . . . Electromagnetic 4739 | . . 12 . 521 37 . 47 309 . 2849 357 . 46 561 Impact 1982 | . . . . 256 . . 647 . 118 651 . . 310 . Slashing . | . . . . . . . . . . . . . . . Piercing 527 | . . . . . . . . . . . 86 . 209 232 Highest Corruption 18 | . . . 4 9 . . 1 1 1 12 1 . 18 13 Average Corruption 5 | . . . 4 6 . . 1 1 1 9 1 . 10 6 Corruption Purged . | . . . . . . . . . . . . . . . Corruption Blocked . | . . . . . . . . . . . . . . . Effects 135 | . . . 9 46 . . 6 3 1 38 2 . 14 16 Message Errors 34 | . . . 2 10 . . 1 . 1 10 1 . 6 3 Matter Fused 30 | . . . 5 13 . . 1 . . 3 1 . 1 6 Heat Flow Errors 18 | . . . . 4 . . 1 . . 11 . . 1 1 Energy Discharges 10 | . . . . 6 . . . . . 1 . . 2 1 Data Loss (minor) 16 | . . . . 6 . . 2 1 . 5 . . . 2 Data Loss (major) 5 | . . . 1 1 . . . 2 . . . . 1 . Misfires 6 | . . . . . . . . . . 4 . . 2 . Alerts 4 | . . . . 2 . . 1 . . 1 . . . . Misdirections 3 | . . . . . . . . . . 2 . . . 1 Weapon Failures 9 | . . . 1 4 . . . . . 1 . . 1 2 Overload Shots . | . . . . . . . . . . . . . . . Overflow Damage 1134 | . 2 13 . 111 26 . 217 2 108 354 86 . 194 21 Projectiles 61 | . 2 13 . . 24 . . . . . . . 1 21 Explosions 295 | . . . . 29 2 . . 2 . 196 66 . . . Melee 778 | . . . . 82 . . 217 . 108 158 20 . 193 . Knockbacks 52 | . 3 6 7 8 2 . 4 . 1 1 6 . 7 7 Impact 7 | . . . . . . . 3 . 1 . . . 3 . Kinetic 43 | . 2 6 7 8 2 . . . . 1 6 . 4 7 Secondary 2 | . 1 . . . . . 1 . . . . . . . Self-Inflicted Damage 286 | . . . . 20 . . 23 34 . 187 13 . . 9 Shots 12 | . . . . 3 . . 1 3 . 2 2 . . 1 Rammed 6 | . . . . 1 . . 1 . . . . . . 4 Targets Rammed 6 | . . . . 1 . . 1 . . . . . . 4 Kicked . | . . . . . . . . . . . . . . . Crushed . | . . . . . . . . . . . . . . . Highest Temperature 423 | 117 333 156 287 423 273 126 421 87 . 241 373 . 209 199 Average Temperature 90 | 59 98 43 77 130 103 44 112 43 . 100 111 . 79 103 Received Heat Transfer 2008 | . 138 99 99 369 . . 223 36 . 558 54 . 18 414 Effects 5 | . . . . 2 . . . . . . 3 . . . Shutdowns 1 | . . . . 1 . . . . . . . . . . Energy Bleed 1 | . . . . . . . . . . . 1 . . . Interference 2 | . . . . . . . . . . . 2 . . . Short Circuit 1 | . . . . 1 . . . . . . . . . . Siege Activations . | . . . . . . . . . . . . . . . Robots Corrupted 2 | . . . . . . . 1 . . . . . . 1 Combat Hostiles 2 | . . . . . . . 1 . . . . . . 1 Parts Fried 42 | . . . . 3 . . 4 1 1 30 . . . 3 Impact Corruptions 22 | . . . . 2 . . 6 . 3 7 . . 4 . Robots Melted 4 | . . . . . . . 1 . . . 2 . . 1 Combat Hostiles 4 | . . . . . . . 1 . . . 2 . . 1 Parts Melted 9 | . 5 . . . . 1 2 . . 1 . . . . Heat Transferred 5722 | 148 666 . . 200 . 37 999 274 . 1812 500 . 50 1036 Parts Sabotaged . | . . . . . . . . . . . . . . . Parts Stolen . | . . . . . . . . . . . . . . . Parts Stripped . | . . . . . . . . . . . . . . . Power Chain Reactions 17 | . . . . 8 . . . 4 . 1 4 . . . Missiles Intercepted . | . . . . . . . . . . . . . . . Alert | -11 -10 -9 -8 -8 -7 -6 -6 -6 -6 -6 -5 -4 -3 -2 ------- Run | Scr Mat Mat Mat Sto Fac Fac Ext Cet Arc Hub Fac Fac Res Res Peak Influence 1061 | 5 166 192 296 718 328 120 1040 1005 606 1061 889 449 348 260 Initial 582 | . 3 9 44 99 198 25 9 582 402 191 504 435 230 94 Average 297 | 1 40 53 174 411 191 49 427 797 472 600 615 445 255 104 Maximum Alert Level 3 | . . . 1 3 1 . 3 3 2 3 3 2 1 1 Low Security (%) 47 | 100 100 100 52 12 65 100 24 . . 11 . . 18 94 Level 1 20 | . . . 47 23 34 . 28 . . 35 . . 81 5 Level 2 20 | . . . . 63 . . 27 12 100 . 78 100 . . Level 3 11 | . . . . . . . 19 88 . 52 21 . . . Level 4 . | . . . . . . . . . . . . . . . Level 5 . | . . . . . . . . . . . . . . . High Security . | . . . . . . . . . . . . . . . Max Security . | . . . . . . . . . . . . . . . Squads Dispatched 37 | . 1 . 2 4 3 1 3 . . 8 6 . 3 6 Investigation 5 | . 1 . . 1 . . 1 . . 1 . . . 1 Extermination 8 | . . . . . 1 . . . . 2 2 . 1 2 Reinforcement 19 | . . . 2 1 2 1 2 . . 3 4 . 2 2 Assault 4 | . . . . 2 . . . . . 1 . . . 1 Garrison 1 | . . . . . . . . . . 1 . . . . Intercept . | . . . . . . . . . . . . . . . Searches Triggered . | . . . . . . . . . . . . . . . Construction Impeded 2 | . . . . . 1 . . . . . . . . 1 Haulers Reinforced 1 | . . . . . . . . . . . . . 1 . Active Scanning Responses . | . . . . . . . . . . . . . . . Cargo Convoy Interrupts . | . . . . . . . . . . . . . . . Stealth | -11 -10 -9 -8 -8 -7 -6 -6 -6 -6 -6 -5 -4 -3 -2 --------- Run | Scr Mat Mat Mat Sto Fac Fac Ext Cet Arc Hub Fac Fac Res Res Distress Signals 13 | . 1 2 . 1 1 1 . . . 1 1 . 1 4 Communications Jammed . | . . . . . . . . . . . . . . . Distress Signals . | . . . . . . . . . . . . . . . Times Spotted 258 | . 11 21 19 38 5 1 38 13 10 27 21 . 13 41 Peak Tracking Total 14 | . 4 4 4 10 2 1 5 5 10 6 6 . 6 14 Tactical Retreats 16 | . . 1 . 1 . . 1 . 1 5 1 . . 6 Traps | -11 -10 -9 -8 -8 -7 -6 -6 -6 -6 -6 -5 -4 -3 -2 ------- Run | Scr Mat Mat Mat Sto Fac Fac Ext Cet Arc Hub Fac Fac Res Res Traps Triggered 14 | . 1 . . 3 1 2 3 . . 3 . . . 1 Indirectly 4 | . . . . 1 . . 2 . . 1 . . . . Trap Hack Attempts . | . . . . . . . . . . . . . . . Triggered . | . . . . . . . . . . . . . . . Disarmed . | . . . . . . . . . . . . . . . Reprogrammed . | . . . . . . . . . . . . . . . Reused . | . . . . . . . . . . . . . . . Traps Extracted . | . . . . . . . . . . . . . . . Installed . | . . . . . . . . . . . . . . . Triggered . | . . . . . . . . . . . . . . . Machines | -11 -10 -9 -8 -8 -7 -6 -6 -6 -6 -6 -5 -4 -3 -2 ---------- Run | Scr Mat Mat Mat Sto Fac Fac Ext Cet Arc Hub Fac Fac Res Res Machines Disabled 53 | . 1 . 1 10 3 . 8 6 4 15 4 . . 1 Max in Single Turn 12 | . 1 . 1 2 2 . 1 3 1 12 2 . . 1 Garrison Access 3 | . . . . . . 1 . . . 1 . . . 1 Network Hub 2 | . . . . . . . . . . 2 . . . . Machines Sabotaged . | . . . . . . . . . . . . . . . Garrisons Compromised . | . . . . . . . . . . . . . . . Overloaded Fab Kills . | . . . . . . . . . . . . . . . Hacking | -11 -10 -9 -8 -8 -7 -6 -6 -6 -6 -6 -5 -4 -3 -2 --------- Run | Scr Mat Mat Mat Sto Fac Fac Ext Cet Arc Hub Fac Fac Res Res Machines Accessed 56 | . 4 4 1 8 6 4 13 3 . 8 2 1 1 1 Terminals 50 | . 3 3 1 8 6 2 13 3 . 7 1 1 1 1 Fabricators 1 | . . . . . . 1 . . . . . . . . Repair Stations 1 | . 1 . . . . . . . . . . . . . Recycling Units . | . . . . . . . . . . . . . . . Scanalyzers 1 | . . 1 . . . . . . . . . . . . Garrison Access 3 | . . . . . . 1 . . . 1 1 . . . Total Hacks 135 | . 14 14 2 23 18 8 23 6 . 15 7 2 1 2 Successful 69 | . 11 9 1 9 10 4 11 3 . 5 3 1 1 1 Failed 66 | . 3 5 1 14 8 4 12 3 . 10 4 1 . 1 Catastrophic 22 | . . . 1 3 2 . 6 1 . 5 3 1 . . Database Lockouts . | . . . . . . . . . . . . . . . Manual 32 | . 5 7 1 8 4 2 1 . . 2 2 . . . Terminals 122 | . 11 11 2 23 18 5 23 6 . 14 4 2 1 2 Fabricators 2 | . . . . . . 2 . . . . . . . . Repair Stations 3 | . 3 . . . . . . . . . . . . . Recycling Units . | . . . . . . . . . . . . . . . Scanalyzers 3 | . . 3 . . . . . . . . . . . . Garrison Access 5 | . . . . . . 1 . . . 1 3 . . . Terminal Hacks 41 | . 3 2 . 5 7 1 11 3 . 4 2 1 1 1 Record 5 | . 2 1 . . . . . 2 . . . . . . Robot Analysis 1 | . . . . . . . 1 . . . . . . . Prototype ID Bank 1 | . 1 . . . . . . . . . . . . . Open Door 8 | . . . . 1 . . 6 1 . . . . . . Open DSF 3 | . . . . . 2 . . . . . . . 1 . Branch Access Points 2 | . . . . . . . . . . 1 . . . 1 Emergency Access Points 3 | . . . . 1 1 . . . . 1 . . . . Terminal Index 2 | . . . . . 1 1 . . . . . . . . Unreport Threat 1 | . . . . 1 . . . . . . . . . . Locate Traps 6 | . . . . 1 1 . 1 . . 1 1 1 . . Dispatch Records 1 | . . . . . . . 1 . . . . . . . Patrol Status 1 | . . . . . . . 1 . . . . . . . Registered Components 1 | . . . . . . . 1 . . . . . . . Zone Layout 6 | . . 1 . 1 2 . . . . 1 1 . . . Fabricator Hacks 1 | . . . . . . 1 . . . . . . . . Build 1 | . . . . . . 1 . . . . . . . . Repair Station Hacks 3 | . 3 . . . . . . . . . . . . . Scan Component 2 | . 2 . . . . . . . . . . . . . Repair 1 | . 1 . . . . . . . . . . . . . Recycling Unit Hacks . | . . . . . . . . . . . . . . . Scanalyzer 3 | . . 3 . . . . . . . . . . . . Insert Component 1 | . . 1 . . . . . . . . . . . . Analyze 2 | . . 2 . . . . . . . . . . . . Garrison Access Hacks 2 | . . . . . . 1 . . . 1 . . . . Seal Access 2 | . . . . . . 1 . . . 1 . . . . Unauthorized Hacks 19 | . 5 4 1 4 3 1 . . . . 1 . . . Terminals 19 | . 5 4 1 4 3 1 . . . . 1 . . . Track 12 | . 3 2 1 4 2 . . . . . . . . . Botnet 3 | . 1 1 . . . . . . . . 1 . . . Detonate 1 | . . . . . 1 . . . . . . . . . Operators 3 | . 1 1 . . . 1 . . . . . . . . Fabricators . | . . . . . . . . . . . . . . . Repair Stations . | . . . . . . . . . . . . . . . Recycling Units . | . . . . . . . . . . . . . . . Scanalyzers . | . . . . . . . . . . . . . . . Garrison Access . | . . . . . . . . . . . . . . . Data Cores Recovered . | . . . . . . . . . . . . . . . Used . | . . . . . . . . . . . . . . . Hacking Detections 46 | . 4 4 1 7 5 3 9 2 . 7 2 1 . 1 Full Trace Events 1 | . . . . . . . 1 . . . . . . . Feedback Events . | . . . . . . . . . . . . . . . Feedback Blocked . | . . . . . . . . . . . . . . . Robot Schematics Acquired . | . . . . . . . . . . . . . . . Robots Built . | . . . . . . . . . . . . . . . Authchips . | . . . . . . . . . . . . . . . Time . | . . . . . . . . . . . . . . . Total Robot Build Rating . | . . . . . . . . . . . . . . . Part Schematics Acquired 1 | . . 1 . . . . . . . . . . . . Parts Built 1 | . . . . . . 1 . . . . . . . . Authchips . | . . . . . . . . . . . . . . . Time 62 | . . . . . . 62 . . . . . . . . Total Part Build Rating 7 | . . . . . . 7 . . . . . . . . Parts Repaired 1 | . 1 . . . . . . . . . . . . . Time 26 | . 26 . . . . . . . . . . . . . Parts Recycled . | . . . . . . . . . . . . . . . Recycled Matter . | . . . . . . . . . . . . . . . Retrieved Matter . | . . . . . . . . . . . . . . . Retrieved Components . | . . . . . . . . . . . . . . . Parts Scanalyzed 1 | . . 1 . . . . . . . . . . . . Part Schematics Acquired 1 | . . 1 . . . . . . . . . . . . Parts Damaged . | . . . . . . . . . . . . . . . Bothacking | -11 -10 -9 -8 -8 -7 -6 -6 -6 -6 -6 -5 -4 -3 -2 ------------ Run | Scr Mat Mat Mat Sto Fac Fac Ext Cet Arc Hub Fac Fac Res Res Used RIF Installer . | . . . . . . . . . . . . . . . Robots Hacked . | . . . . . . . . . . . . . . . Non-combat . | . . . . . . . . . . . . . . . Combat . | . . . . . . . . . . . . . . . Robot Hacks Applied . | . . . . . . . . . . . . . . . Relay Couplers Released 1 | . . . . . . . . . . . . . . 1 Machine Destruction 1 | . . . . . . . . . . . . . . 1 Fabnet Peak Effective % . | . . . . . . . . . . . . . . . Robots Rewired 11 | . . . . . . . 11 . . . . . . . Allies Hacked . | . . . . . . . . . . . . . . . Hacks Repelled . | . . . . . . . . . . . . . . . Allies | -11 -10 -9 -8 -8 -7 -6 -6 -6 -6 -6 -5 -4 -3 -2 -------- Run | Scr Mat Mat Mat Sto Fac Fac Ext Cet Arc Hub Fac Fac Res Res Total Allies 36 | . . . . 12 3 . 21 . . . . . . . Largest Group 17 | . . . . 10 3 3 17 13 5 . . . . . Highest-Rated Group 575 | . . . . 187 93 93 575 455 166 . . . . . Highest-Rated Ally 159 | . . . . 31 31 31 159 39 39 . . . . . Total Orders . | . . . . . . . . . . . . . . . Ally Attacks 457 | . . . . 103 . 7 265 47 35 . . . . . Total Damage 7471 | . . . . 1449 . 123 4535 807 557 . . . . . Kills 58 | . . . . 16 . . 27 10 5 . . . . . Allies Corrupted 1 | . . . . . . . 1 . . . . . . . Allies Melted . | . . . . . . . . . . . . . . . Intel | -11 -10 -9 -8 -8 -7 -6 -6 -6 -6 -6 -5 -4 -3 -2 ------- Run | Scr Mat Mat Mat Sto Fac Fac Ext Cet Arc Hub Fac Fac Res Res Robot Analysis Total 1 | . . . . . . . 1 . . . . . . . Derelict Logs Recovered . | . . . . . . . . . . . . . . . Drone Launches . | . . . . . . . . . . . . . . . Drone Recoveries . | . . . . . . . . . . . . . . . Exploration | -11 -10 -9 -8 -8 -7 -6 -6 -6 -6 -6 -5 -4 -3 -2 ------------- Run | Scr Mat Mat Mat Sto Fac Fac Ext Cet Arc Hub Fac Fac Res Res Turns Passed 10680 | 92 883 1287 768 1681 868 484 1301 275 97 1032 603 109 488 712 Spaces Moved 4857 | 57 342 443 240 526 369 249 678 175 54 638 378 83 230 395 Core 191 | 5 . . . . . . . . . . . . . 186 Treads 1602 | . 200 443 240 526 . . . . . . . . . 193 Legs 515 | 52 142 . . . 321 . . . . . . . . . Wheels 2506 | . . . . . 48 249 678 175 54 638 378 83 203 . Hover 43 | . . . . . . . . . . . . . 27 16 Flight . | . . . . . . . . . . . . . . . Fastest Speed 50 | 50 120 160 240 240 130 130 130 130 130 130 105 105 120 50 Average Speed 165 | 113 205 238 240 240 190 130 130 130 130 131 114 118 142 123 Slowest Speed 250 | 120 240 240 240 240 200 130 130 130 130 175 130 120 242 250 Overloaded Moves . | . . . . . . . . . . . . . . . Propulsion Burnouts . | . . . . . . . . . . . . . . . Robots Hopped . | . . . . . . . . . . . . . . . Cave-ins Triggered . | . . . . . . . . . . . . . . . Exploration Rate (%) 37 | 5 50 35 26 78 14 10 79 83 77 65 9 3 7 17 Regions Visited 14 Branch Regions 5 Pre-discovered Areas . | . . . . . . . . . . . . . . . Known Exits Taken . | . . . . . . . . . . . . . . . Unknown Exits Taken 14 | 1 1 1 1 1 1 1 1 1 1 1 1 1 1 . Scrap Searched . | . . . . . . . . . . . . . . . Spaces Dug 50 | . 3 . . . 3 20 2 . 1 5 13 . 1 2 Terrain Destroyed 532 | . 3 8 3 64 34 21 8 17 1 281 64 . 7 21 Melee 30 | . . . . . 3 3 2 . 1 5 13 . 1 2 Projectile 93 | . 3 8 3 . 6 18 6 1 . 11 12 . 6 19 AOE 409 | . . . . 64 25 . . 16 . 265 39 . . . Terrain Rammed . | . . . . . . . . . . . . . . . Walls Destroyed . | . . . . . . . . . . . . . . . Machines Disabled . | . . . . . . . . . . . . . . . Actions | -11 -10 -9 -8 -8 -7 -6 -6 -6 -6 -6 -5 -4 -3 -2 --------- Run | Scr Mat Mat Mat Sto Fac Fac Ext Cet Arc Hub Fac Fac Res Res Total 6683 | 74 463 612 356 836 493 375 1004 210 76 730 477 93 335 549 Wait 585 | . 50 70 34 177 25 70 73 14 19 20 4 1 8 20 Move 4843 | 56 341 442 239 525 368 248 677 174 53 637 377 82 229 395 Hop . | . . . . . . . . . . . . . . . Pick Up 183 | 8 17 30 15 15 18 7 7 4 . 9 11 4 22 16 Fast Attach 37 | 7 1 . . 5 4 2 . . . 1 1 2 7 7 Attach 65 | . . 3 4 9 2 1 . 4 . 4 6 2 11 19 Detach 16 | . . 1 . . 2 . . . . . 1 1 2 9 Swap 143 | . 12 16 13 19 15 2 14 3 1 7 20 . 12 9 Drop 159 | . 12 20 15 17 28 7 9 1 . 3 14 1 11 21 Fire 344 | 3 30 30 36 54 28 19 21 10 . 30 25 . 19 39 Melee 108 | . . . . 10 3 3 29 . 2 19 18 . 14 10 Ram 5 | . . . . . . . 1 . . . . . . 4 Kick . | . . . . . . . . . . . . . . . Crush 1 | . . . . 1 . . . . . . . . . . Escape Stasis 28 | . . . . 4 . 16 8 . . . . . . . Rewire 166 | . . . . . . . 165 . 1 . . . . . Trap . | . . . . . . . . . . . . . . . Miscellaneous . | . . . . . . . . . . . . . . . Route ------- -11/Scrapyard -10/Materials -9/Materials (discovered 3 exits: *Mat x2 / [*Min]) -8/Materials -8/Storage -7/Factory -6/Factory -6/Extension (discovered 3 exits: *Fac x2 / *Cet) -6/Cetus -6/Archives (discovered 2 exits: *Hub x2) -6/Hub_04(d) (discovered 3 exits: *Fac x3) -5/Factory -4/Factory -3/Research -2/Research (discovered 2 exits: Qua x2) History --------- Turn | Location | Event 2 | -11/Scrapyard | Met Revision 17 8 | -11/Scrapyard | Discovered new exit (range 16) 93 | -11/Scrapyard | Entered Materials 306 | -10/Materials | Build established: Mutant 738 | -10/Materials | Repaired Lgt. Treads 912 | -10/Materials | Discovered new exit (range 13) 976 | -10/Materials | Entered another Materials area 976 | -9/Materials | Evolved 2 slots: Propulsion x1, Weapon x1 1270 | -9/Materials | Build established: Gunner 1478 | -9/Materials | Discovered new exit (range 9) 1794 | -9/Materials | Discovered new exit (range 9) 2254 | -9/Materials | Discovered new exit (range 3) 2263 | -9/Materials | Entered another Materials area 2263 | -8/Materials | Evolved 2 slots: Propulsion x1, Utility x1 2610 | -8/Materials | Build established: Scavenger-Tank 2829 | -8/Materials | Discovered new exit (range 9) 3031 | -8/Materials | Entered Storage 3498 | -8/Storage | Assisted by bots powering up and referring to "LRC-V3" 3789 | -8/Storage | Build established: Commander-Mutant 3829 | -8/Storage | Discovered new exit (range 8) 3932 | -8/Storage | Met a pair of Derelict thieves 4068 | -8/Storage | Destroyed 9 combat bots 4095 | -8/Storage | Lost 9 parts (1p4n3u1w) 4342 | -8/Storage | Build established: Scavenger-Mutant 4383 | -8/Storage | Found Prototype Protection 4383 | -8/Storage | Identified Lgt. Regenerative Plating 4712 | -8/Storage | Entered Factory 4712 | -7/Factory | Evolved 2 slots: Power x1, Utility x1 5019 | -7/Factory | Build established: Mutant 5556 | -7/Factory | Discovered new exit (range 10) 5567 | -7/Factory | Allied Derelicts emerged from ambush trap array 5580 | -7/Factory | Entered another Factory area 5580 | -6/Factory | Accompanied by 3 allies 5580 | -6/Factory | Evolved 2 slots: Utility x2 5673 | -6/Factory | Fabricated Hvy. Antimatter Reactor (x1) 6055 | -6/Factory | Discovered new exit (range 4) 6064 | -6/Factory | Entered Extension 6064 | -6/Extension | Accompanied by 3 allies 6355 | -6/Extension | Rescued A7 6506 | -6/Extension | Rescued a captive Derelict 6542 | -6/Extension | Rescued a captive Derelict 6576 | -6/Extension | Spotted B-75 Beast 6594 | -6/Extension | Spotted B-75 Beast 6610 | -6/Extension | Allies destroyed B-75 Beast 6632 | -6/Extension | Allies destroyed B-75 Beast 6654 | -6/Extension | Discovered new exit (range 3) 6728 | -6/Extension | Extracted ID and sensor layout for unrecognized location from A7's data core 6798 | -6/Extension | Rescued a captive Derelict 6799 | -6/Extension | Rescued a captive Derelict 6879 | -6/Extension | Rescued a captive Derelict 6882 | -6/Extension | Rescued a captive Derelict 6959 | -6/Extension | Rescued a captive Derelict 7059 | -6/Extension | Rescued a captive Derelict 7059 | -6/Extension | Rescued a captive Derelict 7238 | -6/Extension | Discovered new exit (range 16) 7248 | -6/Extension | Discovered new exit (range 6) 7293 | -6/Extension | Build established: Commander-Mutant 7294 | -6/Extension | Disrupted transfer network 7365 | -6/Extension | Entered Cetus 7365 | -6/Cetus | Accompanied by 13 allies 7380 | -6/Cetus | Spotted Cetus Guard 7380 | -6/Cetus | Spotted Cetus Guard 7380 | -6/Cetus | Spotted Cetus Guard 7380 | -6/Cetus | Spotted Cetus Guard 7384 | -6/Cetus | Allies destroyed Cetus Guard 7394 | -6/Cetus | Allies destroyed Cetus Guard 7394 | -6/Cetus | Allies destroyed Cetus Guard 7398 | -6/Cetus | Allies destroyed Cetus Guard 7555 | -6/Cetus | Cetus Manufacturing Module disabled 7597 | -6/Cetus | Discovered new exit (range 22) 7640 | -6/Cetus | Entered Archives 7640 | -6/Archives | Accompanied by 5 allies 7675 | -6/Archives | Met Zhirov 7675 | -6/Archives | Discovered new exit (range 22) 7681 | -6/Archives | Reinforcements dispatched to Archives 7689 | -6/Archives | Discovered new exit (range 22) 7726 | -6/Archives | Reinforcements dispatched to Archives 7737 | -6/Archives | Entered Hub_04(d) 7842 | -6/Hub_04(d) | Build established: Mutant 7956 | -6/Hub_04(d) | System corruption reached 10% 8166 | -6/Hub_04(d) | Garrison activated, responded to threat 8224 | -6/Hub_04(d) | Network Hub disabled 8224 | -6/Hub_04(d) | Network Hub disabled 8437 | -6/Hub_04(d) | First assault squad dispatched 8578 | -6/Hub_04(d) | Discovered new exit (range 5) 8613 | -6/Hub_04(d) | Discovered new exit (range 22) 8702 | -6/Hub_04(d) | Discovered new exit (range 4) 8769 | -6/Hub_04(d) | Entered Factory 8769 | -5/Factory | Evolved 2 slots: Propulsion x2 9158 | -5/Factory | Destroyed 7 combat bots 9274 | -5/Factory | Discovered new exit (range 5) 9372 | -5/Factory | Entered another Factory area 9372 | -4/Factory | Evolved 2 slots: Utility x2 9456 | -4/Factory | Found Prototype Launcher 9456 | -4/Factory | Identified Tesla Bomb Launcher 9459 | -4/Factory | Found Tesla Bomb Launcher 9462 | -4/Factory | Found Faulty Tesla Bomb Launcher 9463 | -4/Factory | Discovered new exit (range 10) 9481 | -4/Factory | Entered Research 9481 | -3/Research | Evolved 2 slots: Utility x2 9574 | -3/Research | Found Prototype Processor 9574 | -3/Research | Identified Exp. Target Analyzer 9628 | -3/Research | Build established: Scavenger-Mutant 9767 | -3/Research | System corruption reached 10% 9825 | -3/Research | Lost 9 parts (2p2n4u1w) 9949 | -3/Research | Discovered new exit (range 5) 9969 | -3/Research | Entered another Research area 9969 | -2/Research | Evolved 2 slots: Utility x1, Weapon x1 10285 | -2/Research | Lost 3 parts (3u) 10515 | -2/Research | Spotted B-90 Cyclops 10564 | -2/Research | System corruption reached 10% 10601 | -2/Research | Spotted B-90 Cyclops 10603 | -2/Research | Core integrity fell below 50% 10638 | -2/Research | Core integrity fell below 20% 10639 | -2/Research | Lost 19 parts (2p8n5u4w) 10665 | -2/Research | Identified exit to Quarantine 10681 | -2/Research | Destroyed by H-81 Overseer with Heavy Linear Accelerator Last Messages --------------- 10630_ Penetrated by Slug. 10633_ W-44 Eye sends out distress signal. 10635_ Slammed into W-44 Eye. 10637_ Penetrated by Slug. 10637_ Slug penetrates Wall. 10638_ Slammed into W-44 Eye. 10639_ Penetrated by Slug. 10639_ Adv. Target Analyzer destroyed. 10643_ Slug penetrates Wall. 10648_ System corrupted: Component data lost. 10664_ System corrupted: Matter fused (-6). 10665_ Connecting with Terminal... 10665_ Current location identified: Research >>Access(Branch) Found 2 branch access points: (140,101) Quarantine (96,31) Quarantine Map updated. 10681_ System corrupted: Matter fused (-9). 10681_ Penetrated by Slug. Map ----- +----------------------------------------------------+ | ???# #?????????# # ""#???????????????????? | | ???# ??????????# # ] T"#???????????????????? | | ???# ??????????# # ""#???????????????????? | | ???# ??????????# # ""#???????????????????? | | ???# ??????????# # #???????????????????? | | ???# ??????????# # #???????????????????? | | ???# ??????????# ##+######???????????????????? | | ???# ??????????# #????????????????????????? | | ???# ??????????# #????????????????????????? | | ???# ??????????# #????????????????????????? | | ????? ??????????# #????????????????????????? | | ??????????????????# #????????????????????????? | | ??????????????????# #????????????????????????? | | ??????????????????# ####????????????????????????? | | ??????????#########+#####????????????????????????? | | ??????????# #????????????????????????? | | ??????????# ! #????????????????????????? | | ??????????# | ########+####????????????? | | ??????????# # #????????????? | | ??????????# """ """ ; g #????????????? | | ??????????# """G""" ; Hg #????????????? | | ??????????############### g #????????????? | | ????????????????????????# u ### #????????????? | | ????????????????????????# #????? #????????????? | | ????????????????????????# % #???????????????????? | | ????????????????????????#@ #???????????????????? | | ????????????????????????# #???????????????????? | | ????????????????????????# % #???????????????????? | | ????????????????????????# #???????????????????? | | ????????????????????????# #???????????????????? | | ????????????????????????# #???????????????????? | | ????????????????????????# #???????????????????? | | ???????????????????????? #???????????????????? | | ???????????????????????? #???????????????????? | | ???????????????????????? #???????????????????? | | ???????????????????????? #???????????????????? | | ????????????????????????#+####???????????????????? | | ?????????????????????????????????????????????????? | | ?????????????????????????????????????????????????? | | ?????????????????????????????????????????????????? | | ?????????????????????????????????????????????????? | | ?????????????????????????????????????????????????? | | ?????????????????????????????????????????????????? | | ?????????????????????????????????????????????????? | | ?????????????????????????????????????????????????? | | | | | | | | | | | +----------------------------------------------------+ Best States ------------- Heat Dissipation 95 Coolant Potential 100 Energy Generation 45 Energy Capacity 600 Matter Stores 300 Matter Capacity 300 Sight Range 22 Robot Scan Range 16 Terrain Scan Density 10 Cloak Strength 2 Base Temperature (-) 150 Armor Coverage 1575 Resistance: EM 15 Weapon Cycling 20 Phase Shifting 15 Evasion (%) 55 Targeting Accuracy 8 Target Analysis 12 Recoil Reduction 6 Particle Charging 15 Kinecelleration 40 Force Boost 30 Offensive Hacking 12 Item Schematics ----------------- Hpw. Shotgun | -9/Materials | Scanalyzed Robot Schematics ------------------ None Fabricated ------------ Hvy. Antimatter Reactor | x1 | -6/Factory | Preloaded Alien Tech Used ----------------- None Achievements -------------- None Challenges ------------ None Game ------ Seed HugeShadeShifter Manual? 0 Play Time 04:46:49 Cumulative 166.8 hours Start 2022.03.18 @ 13:57:25 End 2022.03.26 @ 22:36:05 Sessions 9 Manual Loads 0 Difficulty Rogue Special Mode None Game No. 123 Rogue 123 Adventurer 0 Explorer 0 Win Type - Total 3 Types 1/0/2/0/0/0/0/0/0 Lore% 54 Gallery% 65 Achievement% 47 Wizard Run 0 Options --------- ASCII 0 Keyboard 0 Movement Numpad Keybinds 0 Fullscreen 2 Font 18/SmallcapsGlow Map View 76x50 Tactical HUD 1 Map Filters NONE Filters NONE Steam 1 RUN: 07654e3a-98e8-4dc5-8da0-43c7ae2786ff